bitfinex-derivatives/quotes_SOLF0:USTF0_20250516
["timestamp","ask_amount","ask_price","bid_price","bid_amount"]
[1747358952800,126.78,170.74,170.68,5.8575]
[1747358952995,1.8231,170.77,170.68,63.38]
[1747358953299,63.38,170.79,170.69,5.8794]
[1747358953488,63.38,170.79,170.76,5.8547]
[1747358954199,63.38,170.79,170.75,5.8551]
[1747358954395,63.38,170.79,170.7,63.4]
[1747358954798,69.2338,170.79,170.7,63.4]
[1747358955898,63.38,170.79,170.69,5.8794]
[1747358956202,63.4,170.78,170.67,63.4]
[1747358956402,69.2065,170.78,170.66,63.4]
[1747358957097,69.2065,170.78,170.68,5.8575]
[1747358957294,69.2065,170.78,170.66,63.4]
[1747358957697,5.8548,170.76,170.66,63.4]
[1747358957900,63.36,170.75,170.66,63.4]
[1747358958103,63.36,170.75,170.71,5.8563]
[1747358958404,69.2152,170.75,170.66,63.4]
[1747358958705,63.36,170.75,170.66,63.4]
[1747358959403,63.36,170.75,170.71,5.8564]
[1747358959807,63.36,170.75,170.66,63.4]
[1747358960004,5.8556,170.74,170.66,63.4]
[1747358960202,63.36,170.75,170.66,63.4]
[1747358960505,63.36,170.75,170.72,5.8562]
[1747358960703,63.36,170.75,170.66,63.4]
[1747358961105,63.36,170.75,170.71,5.8564]
[1747358961306,63.36,170.75,170.66,63.4]
[1747358961599,63.36,170.75,170.5,5.86]
[1747358961807,63.36,170.75,170.61,63.4]
[1747358962104,63.36,170.75,170.61,65.3177]
[1747358962305,63.36,170.75,170.62,3.9457]
[1747358962808,5.8557,170.74,170.7,5.8566]
[1747358963105,63.4,170.73,170.66,63.4]
[1747358963305,5.8568,170.71,170.66,69.2582]
[1747358963495,63.36,170.7,170.66,63.4]
[1747358964699,63.36,170.7,170.62,3.9457]
[1747358964909,63.36,170.7,170.62,67.2857]
[1747358965495,69.1973,170.69,170.64,5.8588]
[1747358965705,63.34,170.69,170.62,63.34]
[1747358966004,63.34,170.69,170.65,5.8583]
[1747358966305,63.34,170.69,170.62,63.34]
[1747358967307,5.8578,170.68,170.63,5.859]
[1747358967508,5.8578,170.68,170.62,63.34]
[1747358968006,5.8578,170.68,170.63,5.8591]
[1747358968707,5.8579,170.67,170.63,5.8591]
[1747358969004,63.36,170.66,170.63,5.8591]
[1747358969310,63.36,170.66,170.64,5.8588]
[1747358969703,63.36,170.66,170.62,63.34]
[1747358970506,63.34,170.7,170.62,63.34]
[1747358971007,63.36,170.7,170.62,63.34]
[1747358971210,69.2161,170.73,170.68,5.8573]
[1747358971406,63.34,170.7,170.68,5.8573]
[1747358972311,63.34,170.7,170.62,63.34]
[1747358972609,63.34,170.7,170.61,63.36]
[1747358973003,5.8578,170.68,170.63,5.8592]
[1747358974109,5.8578,170.68,170.61,63.36]
[1747358974110,63.34,170.7,170.61,63.36]
[1747358974711,63.34,170.7,170.67,5.8577]
[1747358976117,69.1969,170.7,170.66,5.8581]
[1747358976716,69.1969,170.7,170.65,5.8585]
[1747358976915,69.1969,170.7,170.61,63.36]
[1747358977917,63.34,170.7,170.61,63.36]
[1747358978716,63.34,170.7,170.66,5.8579]
[1747358978917,69.1969,170.7,170.66,5.8579]
[1747358979612,63.34,170.7,170.66,5.8579]
[1747358979927,63.34,170.7,170.67,5.8579]
[1747358980114,63.34,170.7,170.61,63.36]
[1747358981622,69.1969,170.7,170.66,5.858]
[1747358981920,63.34,170.7,170.66,5.858]
[1747358982121,63.34,170.7,170.61,63.36]
[1747358983423,63.34,170.7,170.64,5.8587]
[1747358983625,63.34,170.7,170.61,63.36]
[1747358983920,63.34,170.7,170.66,5.858]
[1747358984328,63.34,170.7,170.61,63.36]
[1747358984329,5.8572,170.69,170.65,5.8585]
[1747358985121,63.34,170.7,170.61,63.36]
[1747358985323,63.36,170.69,170.61,63.36]
[1747358986522,5.8585,170.66,170.62,5.8596]
[1747358986720,63.32,170.65,170.62,5.8596]
[1747358987429,69.1786,170.65,170.61,69.2198]
[1747358987916,63.32,170.65,170.61,69.2198]
[1747358988721,63.32,170.65,170.62,5.8595]
[1747358989022,63.32,170.65,170.61,63.36]
[1747358989224,63.32,170.65,170.63,5.8592]
[1747358991729,63.32,170.65,170.64,5.8589]
[1747358992119,63.32,170.65,170.61,63.36]
[1747358993035,63.36,170.69,170.61,63.36]
[1747358993421,126.66,170.69,170.62,5.05640567]
[1747358993623,63.3,170.69,170.68,5.8575]
[1747358994020,63.3,170.69,170.67,5.8578]
[1747358994427,63.3,170.69,170.61,63.36]
[1747358995025,5.8576,170.68,170.61,63.36]
[1747358995830,69.1573,170.69,170.65,5.8585]
[1747358996029,69.1573,170.69,170.61,63.36]
[1747358996030,63.3,170.69,170.61,63.36]
[1747358996428,69.1572,170.69,170.65,5.8583]
[1747358996630,69.1572,170.69,170.61,63.36]
[1747358996930,63.3,170.69,170.61,63.36]
[1747358997530,63.3,170.69,170.66,5.858]
[1747358997831,69.1573,170.69,170.66,5.858]
[1747358998729,63.3,170.69,170.66,5.858]
[1747358999729,63.3,170.69,170.65,5.8585]
[1747358999929,63.3,170.69,170.61,63.36]
[1747359000430,69.1573,170.69,170.64,5.8586]
[1747359001030,126.58,170.69,170.61,63.36]
[1747359001732,126.58,170.69,170.62,5.8593]
[1747359002131,126.58,170.69,170.61,63.36]
[1747359002335,63.26,170.68,170.61,63.36]
[1747359002536,63.28,170.73,170.63,5.05640567]
[1747359002736,63.26,170.72,170.64,3.8865]
[1747359002928,63.26,170.72,170.65,63.28]
[1747359003229,63.26,170.72,170.7,5.8567]
[1747359003428,126.54,170.73,170.65,63.28]
[1747359004039,5.8554,170.75,170.7,5.8566]
[1747359004241,63.26,170.73,170.7,5.8566]
[1747359004535,63.28,170.77,170.66,5.05640567]
[1747359004836,63.26,170.76,170.69,68.33640567]
[1747359005035,63.24,170.77,170.75,5.8551]
[1747359005231,63.24,170.77,170.69,68.33640567]
[1747359006436,63.24,170.77,170.73,5.8557]
[1747359006737,63.24,170.77,170.69,68.33640567]
[1747359007038,5.8559,170.73,170.69,63.28]
[1747359007235,126.5,170.77,170.69,63.28]
[1747359007436,5.8558,170.73,170.69,63.28]
[1747359007637,69.0958,170.73,170.69,63.28]
[1747359007842,63.24,170.73,170.69,63.28]
[1747359008332,63.26,170.77,170.69,63.28]
[1747359008534,126.48,170.77,170.69,68.33640567]
[1747359009332,63.22,170.77,170.69,68.33640567]
[1747359009639,63.22,170.77,170.74,5.8552]
[1747359010139,63.22,170.77,170.69,68.33640567]
[1747359010140,63.22,170.77,170.69,131.55640567]
[1747359011535,63.22,170.77,170.75,5.8551]
[1747359011736,63.22,170.77,170.73,63.26]
[1747359011942,63.22,170.77,170.76,5.8548]
[1747359012241,69.0535,170.8,170.76,5.8548]
[1747359012539,69.0535,170.8,170.75,5.8551]
[1747359012740,63.2,170.8,170.73,63.26]
[1747359013142,63.2,170.8,170.73,69.1158]
[1747359013644,5.8541,170.78,170.73,63.26]
[1747359014141,63.2,170.8,170.73,63.26]
[1747359014443,69.0534,170.8,170.73,63.26]
[1747359015143,69.0534,170.8,170.75,5.8549]
[1747359015744,63.26,170.81,170.73,63.26]
[1747359016244,126.44,170.81,170.73,63.26]
[1747359016447,126.44,170.81,170.78,5.8541]
[1747359016643,126.44,170.81,170.73,69.1215]
[1747359016839,5.8551,170.76,170.73,63.26]
[1747359017039,126.44,170.77,170.69,63.26]
[1747359017556,126.44,170.77,170.63,1.9943]
[1747359017851,5.05640567,170.75,170.64,63.26]
[1747359018045,5.05640567,170.75,170.65,5.8583]
[1747359018557,5.05640567,170.75,170.64,63.26]
[1747359018952,5.05640567,170.75,170.6,63.26]
[1747359019764,5.05640567,170.72,170.58,63.26]
[1747359019958,126.44,170.71,170.58,63.26]
[1747359020856,5.05640567,170.66,170.52,63.26]
[1747359021158,132.1658,170.65,170.55,5.862]
[1747359021357,132.1658,170.65,170.52,63.26]
[1747359022559,8.10074055,170.73,170.53,63.16]
[1747359022747,132.2983,170.72,170.53,63.16]
[1747359023151,132.2983,170.72,170.54,8.10074055]
[1747359023955,132.2983,170.72,170.63,5.859]
[1747359024459,132.2983,170.72,170.6,63.26]
[1747359024855,5.8583,170.72,170.6,63.26]
[1747359025159,63.18,170.71,170.61,63.18]
[1747359025463,63.18,170.71,170.7,5.8568]
[1747359025956,63.18,170.71,170.68,5.8572]
[1747359026361,63.18,170.71,170.66,63.16]
[1747359027264,63.18,170.71,170.7,5.8568]
[1747359027461,63.16,170.74,170.66,63.16]
[1747359027663,63.16,170.74,170.67,5.6401]
[1747359027965,63.16,170.75,170.67,5.6401]
[1747359027966,63.16,170.75,170.73,5.8555]
[1747359028959,63.16,170.75,170.74,5.8555]
[1747359029166,63.16,170.75,170.67,5.6401]
[1747359030563,63.16,170.75,170.71,5.8564]
[1747359031067,69.0154,170.75,170.7,5.8568]
[1747359031758,63.16,170.75,170.71,5.8565]
[1747359033164,63.16,170.75,170.67,5.6401]
[1747359033569,63.16,170.78,170.76,5.8547]
[1747359033765,63.16,170.78,170.7,63.16]
[1747359033972,63.14,170.79,170.7,63.16]
[1747359035270,68.9938,170.79,170.74,5.8552]
[1747359035570,63.14,170.79,170.7,63.16]
[1747359035767,63.14,170.79,170.75,5.8548]
[1747359035971,63.14,170.79,170.7,63.16]
[1747359036473,68.994,170.79,170.74,5.8554]
[1747359037065,63.14,170.79,170.7,63.16]
[1747359037270,63.16,170.82,170.7,63.16]
[1747359037476,63.16,170.82,170.79,5.8537]
[1747359037675,63.12,170.81,170.79,5.8537]
[1747359037873,63.14,170.87,170.74,63.14]
[1747359038175,68.9514,170.86,170.81,5.8528]
[1747359038569,63.1,170.86,170.75,5.8259]
[1747359038766,68.9911,170.87,170.75,5.8259]
[1747359038963,63.1,170.86,170.75,5.8259]
[1747359039167,68.9514,170.86,170.75,5.8259]
[1747359039567,63.14,170.87,170.75,5.8259]
[1747359039777,63.14,170.92,170.75,511.8659]
[1747359040072,63.1,170.9,170.75,511.8659]
[1747359040269,63.1,170.9,170.76,126.24]
[1747359041578,5.8511,170.87,170.76,126.24]
[1747359041775,63.08,170.86,170.76,126.24]
[1747359042077,63.08,170.86,170.83,5.8523]
[1747359042470,63.08,170.86,170.76,126.24]
[1747359042875,63.14,170.87,170.76,126.24]
[1747359043174,63.12,170.91,170.76,126.24]
[1747359043377,63.08,170.9,170.76,126.24]
[1747359043677,5.8504,170.89,170.84,5.8518]
[1747359043879,5.8504,170.89,170.81,63.12]
[1747359044172,126.18,170.91,170.81,126.18]
[1747359044380,126.18,170.91,170.82,1.9013]
[1747359045071,126.18,170.91,170.88,5.8506]
[1747359046281,126.18,170.91,170.81,126.18]
[1747359046776,126.18,170.91,170.8,63.12]
[1747359047075,5.8514,170.86,170.82,5.8526]
[1747359047279,68.8914,170.86,170.8,63.12]
[1747359047680,68.8914,170.86,170.81,5.8529]
[1747359047984,5.8522,170.84,170.8,63.12]
[1747359048280,5.8522,170.84,170.76,127.9895]
[1747359048475,63.04,170.86,170.77,5.8544]
[1747359048679,5.7705,170.85,170.76,63.12]
[1747359049082,5.7705,170.85,170.75,5.8551]
[1747359049476,5.7705,170.85,170.72,63.12]
[1747359050579,63.04,170.84,170.73,1.8809]
[1747359050781,63.04,170.84,170.8,5.8533]
[1747359053878,63.04,170.84,170.76,63.12]
[1747359054083,63.12,170.83,170.73,1.8809]
[1747359055386,63.12,170.83,170.73,5.8555]
[1747359055589,63.12,170.83,170.72,63.12]
[1747359055793,63.12,170.83,170.72,68.9759]
[1747359056396,5.8547,170.77,170.72,68.9759]
[1747359056584,63.02,170.76,170.72,68.9759]
[1747359056888,63.02,170.76,170.73,5.8558]
[1747359057284,63.02,170.76,170.72,63.12]
[1747359058490,5.8562,170.72,170.67,5.8576]
[1747359058695,5.8562,170.72,170.58,505.88]
[1747359058696,63.02,170.71,170.61,63.02]
[1747359058888,63.02,170.7,170.56,64.9826]
[1747359059089,5.858,170.67,170.56,63.02]
[1747359059392,64.9123,170.69,170.57,1.9626]
[1747359059587,5.8582,170.67,170.61,5.8598]
[1747359059788,63.02,170.66,170.57,1.9626]
[1747359059986,63.02,170.66,170.57,64.9826]
[1747359060392,3.9124,170.75,170.58,8.10074055]
[1747359060596,63.02,170.71,170.58,8.10074055]
[1747359060891,63.02,170.71,170.57,64.9826]
[1747359061296,5.8569,170.7,170.57,64.9826]
[1747359061481,63.04,170.7,170.57,1.9626]
[1747359061791,63.04,170.7,170.58,63.04]
[1747359062699,63.04,170.7,170.65,5.8583]
[1747359062990,63.04,170.7,170.58,63.04]
[1747359063290,63.04,170.7,170.59,8.10074055]
[1747359063492,63.02,170.72,170.6,63.02]
[1747359064495,63.02,170.72,170.68,5.8573]
[1747359064794,63.02,170.72,170.65,63.04]
[1747359064995,63.02,170.72,170.69,5.8569]
[1747359065189,63.02,170.72,170.66,63.04]
[1747359065901,5.8565,170.71,170.66,63.04]
[1747359066200,63.02,170.72,170.66,63.04]
[1747359066582,63.02,170.72,170.67,5.8575]
[1747359066986,63.02,170.72,170.66,63.04]
[1747359067494,63.04,170.78,170.66,63.04]
[1747359067696,63.04,170.77,170.75,5.8551]
[1747359067893,63.04,170.77,170.7,63.04]
[1747359068295,63.04,170.77,170.76,5.8548]
[1747359068689,63.04,170.77,170.7,63.04]
[1747359069994,63.04,170.78,170.7,63.04]
[1747359070193,126.06,170.78,170.7,63.04]
[1747359070599,63.04,170.82,170.7,63.04]
[1747359070888,63.02,170.8,170.7,63.04]
[1747359071093,63.02,170.8,170.79,5.8538]
[1747359071993,63.04,170.82,170.75,63.04]
[1747359072191,506.1,170.92,170.75,63.04]
[1747359072192,64.9497,170.86,170.75,63.04]
[1747359072397,63.02,170.85,170.76,3.886]
[1747359072601,5.8524,170.83,170.78,5.8538]
[1747359072800,63.02,170.85,170.78,5.8538]
[1747359072991,63.02,170.85,170.73,63.04]
[1747359073194,5.8531,170.81,170.73,63.04]
[1747359073493,63.02,170.8,170.73,63.04]
[1747359073997,63.02,170.8,170.77,5.8544]
[1747359074401,68.8735,170.8,170.76,5.8547]
[1747359074697,63.02,170.8,170.73,63.04]
[1747359075186,63.02,170.8,170.7,66.926]
[1747359075791,63.02,170.8,170.7,63.04]
[1747359077597,68.8735,170.8,170.75,5.8549]
[1747359078296,63.02,170.8,170.66,64.9441]
[1747359078598,5.8551,170.76,170.7,5.8568]
[1747359078797,126.04,170.75,170.7,5.8568]
[1747359078998,126.04,170.75,170.66,63.04]
[1747359079200,5.8558,170.74,170.69,5.8569]
[1747359080201,126.04,170.75,170.7,5.8568]
[1747359080397,126.04,170.75,170.66,63.04]
[1747359084999,126.04,170.75,170.62,1.8544]
[1747359085199,5.8582,170.74,170.61,63.04]
[1747359085705,5.8572,170.69,170.64,5.8587]
[1747359085907,63.0,170.68,170.61,63.04]
[1747359086704,63.0,170.68,170.64,5.8587]
[1747359086896,63.0,170.68,170.61,63.04]
[1747359087802,63.0,170.68,170.58,5.6985]
[1747359088903,5.8579,170.67,170.62,5.8595]
[1747359090701,62.98,170.69,170.58,5.6985]
[1747359090904,63.0,170.68,170.58,68.6985]
[1747359091292,68.8577,170.68,170.58,68.6985]
[1747359091492,63.0,170.68,170.58,68.6985]
[1747359092703,5.8585,170.66,170.61,5.8599]
[1747359092900,63.0,170.68,170.58,5.6985]
[1747359093107,63.0,170.68,170.58,3.8294]
[1747359093404,5.8593,170.63,170.58,9.6904]
[1747359093605,68.8593,170.63,170.58,7.7301]
[1747359094007,5.8597,170.62,170.58,7.7301]
[1747359094208,5.8597,170.62,170.58,5.861]
[1747359094907,63.0,170.63,170.56,63.0]
[1747359095308,63.0,170.63,170.59,5.8606]
[1747359095908,68.8593,170.63,170.58,5.8609]
[1747359096210,63.0,170.63,170.56,63.0]
[1747359096509,5.861,170.58,170.53,5.8626]
[1747359096702,63.0,170.58,170.53,5.8626]
[1747359097206,63.0,170.58,170.48,5.8643]
[1747359098010,63.0,170.58,170.45,569.28]
[1747359098210,71.10074055,170.58,170.43,5.9036]
[1747359098603,71.10074055,170.58,170.43,3.9516]
[1747359098909,71.10074055,170.58,170.41,63.02]
[1747359099108,71.10074055,170.58,170.45,5.8654]
[1747359099308,71.10074055,170.58,170.41,63.02]
[1747359099713,71.10074055,170.58,170.43,5.8658]
[1747359100011,5.8643,170.49,170.43,5.8658]
[1747359100212,63.02,170.48,170.43,5.8658]
[1747359100714,63.02,170.48,170.44,5.8657]
[1747359101912,63.02,170.48,170.4,1.9367]
[1747359102110,63.02,170.48,170.39,1.952]
[1747359102310,63.02,170.48,170.38,1.9701]
[1747359102616,63.02,170.48,170.4,5.8669]
[1747359102909,5.8651,170.46,170.38,1.9701]
[1747359103115,63.02,170.48,170.38,1.9701]
[1747359103612,63.02,170.48,170.43,5.8658]
[1747359103808,63.02,170.48,170.38,1.9701]
[1747359104415,63.02,170.48,170.45,5.8654]
[1747359104713,63.02,170.48,170.38,1.9701]
[1747359104911,5.8649,170.47,170.41,5.8668]
[1747359105109,63.02,170.48,170.38,1.9701]
[1747359105309,63.02,170.47,170.38,1.9701]
[1747359106513,63.02,170.47,170.34,3.9514]
[1747359107411,5.8658,170.45,170.38,5.8675]
[1747359107608,63.06,170.44,170.34,3.9514]
[1747359108415,63.02,170.43,170.34,3.9514]
[1747359109613,63.06,170.44,170.34,3.9514]
[1747359109814,63.06,170.44,170.43,5.8661]
[1747359110615,63.06,170.44,170.42,5.8664]
[1747359111416,63.06,170.44,170.38,1.9039]
[1747359112017,63.06,170.44,170.4,5.8669]
[1747359112215,63.06,170.44,170.38,1.9039]
[1747359114112,63.06,170.44,170.4,5.8669]
[1747359114314,63.06,170.44,170.37,63.08]
[1747359114717,63.06,170.44,170.34,3.9514]
[1747359115222,5.8664,170.43,170.38,5.8678]
[1747359115520,63.06,170.44,170.34,3.9514]
[1747359117215,506.48,170.52,170.35,63.02]
[1747359117520,5.8641,170.49,170.44,5.8655]
[1747359118415,63.02,170.48,170.45,5.8653]
[1747359119914,63.02,170.47,170.39,63.0]
[1747359120415,63.02,170.47,170.44,5.8655]
[1747359121216,63.02,170.51,170.39,126.0]
[1747359121421,63.02,170.51,170.39,134.10074055]
[1747359121422,63.0,170.5,170.39,134.10074055]
[1747359121720,63.0,170.5,170.48,5.8644]
[1747359122123,63.0,170.5,170.44,63.02]
[1747359122318,63.02,170.51,170.5,5.8637]
[1747359122519,63.0,170.52,170.45,3.9932]
[1747359122721,63.0,170.52,170.45,5.8484]
[1747359122917,63.02,170.55,170.51,5.8634]
[1747359123128,63.02,170.55,170.48,63.02]
[1747359123721,5.939,170.63,170.48,63.02]
[1747359124017,506.86,170.69,170.48,63.02]
[1747359124323,5.8593,170.63,170.48,63.02]
[1747359124525,63.0,170.62,170.48,63.02]
[1747359124729,5.86,170.61,170.48,63.02]
[1747359125122,63.0,170.62,170.48,63.02]
[1747359125426,63.0,170.63,170.5,8.10074055]
[1747359125725,125.98,170.63,170.51,62.98]
[1747359125925,62.98,170.63,170.52,63.0]
[1747359126127,62.98,170.63,170.52,64.9084]
[1747359126525,5.8596,170.62,170.57,5.8612]
[1747359126825,62.98,170.63,170.52,64.9084]
[1747359127731,62.96,170.68,170.54,8.10074055]
[1747359127925,62.96,170.68,170.55,66.7111]
[1747359128124,62.96,170.68,170.56,62.98]
[1747359128324,62.98,170.7,170.56,62.98]
[1747359128626,62.96,170.69,170.56,62.98]
[1747359129631,5.8589,170.64,170.59,5.8605]
[1747359129927,62.96,170.64,170.56,62.98]
[1747359130328,62.96,170.64,170.6,5.8601]
[1747359130826,62.96,170.64,170.56,62.98]
[1747359131622,62.94,170.65,170.56,62.98]
[1747359132031,62.98,170.7,170.56,62.98]
[1747359132329,62.98,170.7,170.58,8.10074055]
[1747359132527,62.94,170.73,170.7,5.8566]
[1747359132723,62.94,170.73,170.64,62.96]
[1747359133029,62.94,170.73,170.63,62.96]
[1747359133829,3.9467,170.72,170.59,127.8604]
[1747359134029,62.96,170.71,170.59,127.8604]
[1747359134425,1.9839,170.74,170.59,127.8604]
[1747359134631,1.9839,170.74,170.61,8.10074055]
[1747359134632,62.92,170.74,170.61,8.10074055]
[1747359135231,68.7758,170.74,170.61,8.10074055]
[1747359135633,5.8559,170.73,170.61,8.10074055]
[1747359135926,62.92,170.74,170.61,8.10074055]
[1747359136119,62.92,170.74,170.66,5.8579]
[1747359136326,5.8566,170.71,170.63,62.96]
[1747359136524,62.9,170.7,170.63,62.96]
[1747359138232,62.9,170.7,170.67,5.8578]
[1747359138433,62.9,170.7,170.63,62.96]
[1747359138732,62.9,170.7,170.65,5.8585]
[1747359138935,62.9,170.7,170.63,62.96]
[1747359139431,62.9,170.7,170.59,571.4404]
[1747359139832,5.8572,170.69,170.59,571.4404]
[1747359140337,62.9,170.7,170.59,571.4404]
[1747359141637,62.9,170.7,170.67,5.8576]
[1747359142036,62.9,170.7,170.63,62.94]
[1747359142732,62.96,170.72,170.63,62.94]
[1747359142927,62.88,170.71,170.63,62.94]
[1747359143236,125.84,170.72,170.64,3.9302]
[1747359143436,125.84,170.72,170.7,5.8568]
[1747359143437,62.96,170.72,170.7,5.8568]
[1747359143734,125.84,170.72,170.7,5.8568]
[1747359144438,125.84,170.72,170.64,3.9302]
[1747359144632,5.9032,170.76,170.64,3.9302]
[1747359144936,62.88,170.75,170.65,62.88]
[1747359146132,62.94,170.76,170.75,5.8551]
[1747359146439,62.86,170.76,170.75,5.8551]
[1747359146640,62.86,170.76,170.69,62.94]
[1747359146833,5.8539,170.79,170.69,62.94]
[1747359147035,62.86,170.78,170.69,62.94]
[1747359147846,62.86,170.8,170.76,5.8547]
[1747359148040,62.86,170.8,170.69,62.94]
[1747359148041,62.86,170.79,170.69,62.94]
[1747359148540,62.86,170.78,170.69,62.94]
[1747359148936,62.86,170.78,170.69,125.8]
[1747359149738,62.86,170.78,170.75,5.855]
[1747359150041,62.86,170.78,170.69,125.8]
[1747359150238,62.86,170.78,170.76,5.8547]
[1747359150444,62.84,170.78,170.69,125.8]
[1747359151247,62.84,170.78,170.75,5.8549]
[1747359151739,62.84,170.78,170.76,5.8547]
[1747359152545,62.84,170.78,170.77,5.8544]
[1747359152737,62.86,170.8,170.73,62.84]
[1747359153043,62.84,170.84,170.73,125.68]
[1747359153243,62.84,170.84,170.74,5.6542]
[1747359153442,125.68,170.84,170.74,5.6542]
[1747359153633,1.8963,170.9,170.74,5.6542]
[1747359153634,3.811,170.9,170.74,5.6542]
[1747359153840,62.82,170.86,170.74,13.75494055]
[1747359154042,62.82,170.87,170.74,13.75494055]
[1747359154350,62.82,170.87,170.86,5.8514]
[1747359154545,62.84,170.92,170.81,62.84]
[1747359154843,62.82,170.91,170.81,62.84]
[1747359155030,62.82,170.91,170.82,3.6922]
[1747359156944,5.8504,170.89,170.84,5.8518]
[1747359157138,62.82,170.91,170.82,3.6922]
[1747359157844,62.82,170.91,170.81,62.84]
[1747359158042,5.6627,170.9,170.81,62.84]
[1747359158745,5.6627,170.9,170.84,5.852]
[1747359159047,5.6627,170.9,170.81,62.84]
[1747359160446,5.6627,170.9,170.81,68.6928]
[1747359160750,5.6627,170.9,170.81,62.84]
[1747359161549,5.6627,170.9,170.8,5.8534]
[1747359161746,5.6627,170.9,170.77,62.8]
[1747359163649,5.6627,170.9,170.8,5.8534]
[1747359163849,5.6627,170.9,170.77,62.8]
[1747359164146,5.6627,170.9,170.78,5.8538]
[1747359164347,5.6627,170.9,170.77,62.8]
[1747359165050,13.76344055,170.9,170.77,62.8]
[1747359165750,5.8527,170.82,170.78,5.854]
[1747359165954,62.76,170.82,170.77,62.8]
[1747359166351,62.76,170.82,170.79,5.8535]
[1747359167155,62.76,170.82,170.8,5.8534]
[1747359167353,62.76,170.82,170.77,62.8]
[1747359167752,62.76,170.82,170.81,5.8531]
[1747359167952,62.76,170.82,170.77,62.8]
[1747359168153,125.56,170.84,170.77,62.8]
[1747359168341,125.56,170.84,170.8,5.8532]
[1747359168543,125.56,170.84,170.77,62.8]
[1747359168754,62.76,170.84,170.77,62.8]
[1747359169256,62.76,170.84,170.8,5.8531]
[1747359170255,62.76,170.84,170.77,62.8]
[1747359170458,5.8524,170.83,170.77,62.8]
[1747359170754,62.76,170.84,170.79,5.8537]
[1747359170946,62.76,170.84,170.77,62.8]
[1747359171147,68.6123,170.84,170.77,62.8]
[1747359171346,62.76,170.84,170.77,62.8]
[1747359171959,62.76,170.84,170.81,5.8527]
[1747359172257,5.8515,170.86,170.81,5.8527]
[1747359172464,62.74,170.85,170.81,5.8527]
[1747359172955,62.74,170.85,170.82,5.8527]
[1747359173462,62.74,170.85,170.81,5.853]
[1747359173757,62.74,170.85,170.77,62.8]
[1747359173964,62.74,170.87,170.77,62.8]
[1747359174262,62.74,170.87,170.85,5.8515]
[1747359174757,68.6,170.87,170.68,69.65136966]
[1747359174955,5.7498,170.86,170.7,3.8437]